[Event "World Junior U20 Girls 2018"]
[Site "Gebze"]
[Date "2018.09.08"]
[Round "5"]
[White "Anacoglu, Cisel"]
[Black "Hereklioglu, Sude"]
[Result "0-1"]
[ECO "B47"]
[WhiteElo "1791"]
[BlackElo "1930"]
[Annotator "NA"]
[PlyCount "62"]
[EventDate "2018.09.05"]
[EventType "swiss"]
[EventCountry "TUR"]
[SourceTitle "playchess.com"]
[Source "ChessBase"]
[SourceQuality "1"]
[TimeControl "40/5400+30:1800+30"]

1. e4 {[%emt 0:00:30]} c5 {[%emt 0:00:30]} 2. Nf3 {[%emt 0:00:30]} e6 {[%emt 0:00:00]} 3. d4 {[%emt 0:00:00]} cxd4 {[%emt 0:00:00]} 4. Nxd4 {[%emt 0:00:00]} Nc6 {[%emt 0:00:30]} 5. Nc3 {[%emt 0:00:00]} Qc7 {[%emt 0:00:30]} 6. g3 {[%emt 0:00:00]} a6 {[%emt 0:00:30]} 7. Bg2 {[%emt 0:00:00]} Nf6 {[%emt 0:00:30]} 8. O-O {[%emt 0:00:00]} Be7 {[%emt 0:02:30]} 9. Re1 {[%emt 0:01:30]} O-O {[%emt 0:03:30]} 10. Nxc6 {[%emt 0:04:30]} bxc6 {[%emt 0:00:30]} 11. e5 {[%emt 0:03:30]} Nd5 {[%emt 0:05:30]} 12. Bd2 {[%emt 0:10:30]} f6 {[%emt 0:07:30]} 13. Nxd5 {[%emt 0:04:30]} cxd5 {[%emt 0:02:30]} 14. exf6 {[%emt 0:24:30]} Bxf6 {[%emt 0:02:30]} 15. Bb4 {[%emt 0:05:30]} Rd8 {[%emt 0:08:30]} 16. Qd2 {[%emt 0:06:30]} a5 {[%emt 0:01:30]} 17. Ba3 {[%emt 0:07:30]} Ba6 {[%emt 0:11:30]} 18. Rac1 {[%emt 0:04:30]} Qc4 {[%emt 0:16:30]} 19. Qxa5 {[%emt 0:16:15]} Qxa2 {[%emt 0:00:30]} 20. Ra1 {[%emt 0:01:16]} Qc4 {[%emt 0:00:00]} 21. Bf1 {[%emt 0:04:00]} Qc6 {[%emt 0:01:00]} 22. Bxa6 {[%emt 0:00:33]} Rxa6 {[%emt 0:00:30]} 23. Qd2 {[%emt 0:00:26]} Rc8 {[%emt 0:00:30]} 24. c3 {[%emt 0:00:46]} Rca8 {[%emt 0:02:30]} 25. Rac1 {[%emt 0:00:20]} Ra4 {[%emt 0:08:30]} 26. Qd3 {[%emt 0:03:25]} Rxa3 {[%emt 0:06:02]} 27. bxa3 {[%emt 0:00:30]} Rxa3 {[%emt 0:00:00]} 28. Red1 {[%emt 0:01:53]} d4 {[%emt 0:02:40]} 29. Qd2 {[%emt 0:00:25]} Rxc3 {[%emt 0:01:05]} 30. Rxc3 {[%emt 0:00:03]} dxc3 {[%emt 0:00:03]} 31. Qa2 {[%emt 0:01:05]} d5 {[%emt 0:08:06]} 0-1

[Event "World Junior U20 Girls 2018"]
[Site "Gebze"]
[Date "2018.09.08"]
[Round "5"]
[White "Huttl, Sofie"]
[Black "Nemcova, Karin"]
[Result "1/2-1/2"]
[ECO "B01"]
[WhiteElo "1727"]
[BlackElo "1990"]
[Annotator "NA"]
[PlyCount "67"]
[EventDate "2018.09.05"]
[EventType "swiss"]
[EventCountry "TUR"]
[SourceTitle "playchess.com"]
[Source "ChessBase"]
[SourceQuality "1"]
[TimeControl "40/5400+30:1800+30"]

1. e4 {[%emt 0:00:30]} d5 {[%emt 0:00:30]} 2. exd5 {[%emt 0:00:30]} Qxd5 {[%emt 0:00:00]} 3. Nc3 {[%emt 0:00:00]} Qd6 {[%emt 0:00:00]} 4. d4 {[%emt 0:00:00]} Nf6 {[%emt 0:00:00]} 5. h3 {[%emt 0:03:30] B01: Scandinavian Defence} (5. a3 c6 6. Bc4 Be6 7. Bxe6 Qxe6+ 8. Nge2 Qd7 9. O-O e6 10. Ng3 Be7 11. Nce4 Nxe4 12. Nxe4 Qd5 {0-1 (38) Mamedov,R (2709)-Carlsen,M (2834) chess.com INT 2018}) 5... c6 {[%emt 0:02:00]} 6. Nf3 {[%emt 0:00:30]} Bf5 {[%emt 0:00:30]} 7. Bd3 {[%emt 0:05:30]} Bxd3 {[%emt 0:02:30]} 8. Qxd3 {[%emt 0:00:00]} e6 {[%emt 0:00:30]} 9. Ne4 {[%emt 0:03:00]} Nxe4 {[%emt 0:01:30]} 10. Qxe4 {[%emt 0:00:30]} Be7 {[%emt 0:00:30]} 11. O-O {[%emt 0:00:30]} Nd7 {[%emt 0:07:30]} 12. c3 {[%emt 0:10:30]} Nf6 $146 {[%emt 0:01:30]} ({Predecessor:} 12... O-O 13. Bg5 Bxg5 14. Nxg5 {0-1 (53) Khukhashvili,S (2396)-Mirzoev,A (2565) Baku 2012}) 13. Qe5 {[%emt 0:01:30]} O-O {[%emt 0:05:30]} 14. Bf4 {[%emt 0:02:30]} Qd5 {[%emt 0:03:30]} 15. Qc7 {[%emt 0:05:30]} Qd7 {[%emt 0:00:30]} 16. Qxd7 {[%emt 0:00:30]} Nxd7 {[%emt 0:00:30]} 17. Rfe1 {[%emt 0:02:30]} Nb6 {[%emt 0:04:30]} 18. Ne5 {[%emt 0:02:30]} Rad8 {[%emt 0:01:30]} 19. Rad1 {[%emt 0:03:30]} Rfe8 {[%emt 0:05:30]} 20. Bg3 {[%emt 0:08:30]} Bf8 {[%emt 0:02:30]} 21. Bh4 {[%emt 0:03:30]} f6 {[%emt 0:03:30]} 22. Nd3 {[%emt 0:02:30]} Kf7 {[%emt 0:00:30]} 23. Bg3 {[%emt 0:01:30]} Rd5 {[%emt 0:06:30]} 24. f3 {[%emt 0:16:30]} Na4 {[%emt 0:15:30]} 25. Re4 {[%emt 0:07:52]} c5 {[%emt 0:15:30]} 26. Nf4 {[%emt 0:03:35]} f5 {[%emt 0:04:36]} 27. Re2 $11 {[%emt 0:03:02]} (27. Nxd5 $16 fxe4 28. Nc7) 27... Rd7 {[%emt 0:05:17]} 28. Rde1 {[%emt 0:01:56]} Bd6 {[%emt 0:00:55]} 29. d5 {[%emt 0:01:46]} e5 {[%emt 0:06:22]} 30. Ne6 {[%emt 0:00:10]} f4 {[%emt 0:00:00]} 31. Bf2 {[%emt 0:00:55]} c4 {[%emt 0:00:38]} 32. Nxf4 {[%emt 0:00:37]} Bb8 {[%emt 0:00:55]} 33. Ne6 {[%emt 0:06:25]} Rxd5 {[%emt 0:00:20]} 34. Ng5+ {[%emt 0:00:06]} 1/2-1/2